[Event "*** Titled Tuesday Blitz"]
[Site "Chess.com"]
[Date "2021.03.16"]
[Round "2"]
[White "IsaacWiebe"]
[Black "MustafayevFarid2004"]
[Result "1-0"]
[WhiteElo "2252"]
[BlackElo "2461"]
[TimeControl "180+1"]
[EndTime "10:18:34 PDT"]
[Termination "IsaacWiebe won by resignation"]

1. d4 {[%clk 0:03:00.9]} 1... Nf6 {[%clk 0:02:57.4]} 2. c4 {[%clk 0:03:01]} 2...
e6 {[%clk 0:02:56.1]} 3. Nf3 {[%clk 0:03:01.2]} 3... d5 {[%clk 0:02:55]} 4. Nc3
{[%clk 0:03:00.8]} 4... Bb4 {[%clk 0:02:54.1]} 5. Bg5 {[%clk 0:02:57.2]} 5... h6
{[%clk 0:02:48.5]} 6. Bh4 {[%clk 0:02:56.5]} 6... Nbd7 {[%clk 0:02:43.3]} 7. e3
{[%clk 0:02:37.6]} 7... O-O {[%clk 0:02:40.9]} 8. cxd5 {[%clk 0:02:35.5]} 8...
exd5 {[%clk 0:02:36.8]} 9. Bd3 {[%clk 0:02:34.2]} 9... c6 {[%clk 0:02:25.2]} 10.
O-O {[%clk 0:02:33.1]} 10... Qc7 {[%clk 0:02:22.7]} 11. Rc1 {[%clk 0:02:26.5]}
11... Bxc3 {[%clk 0:02:19.4]} 12. Rxc3 {[%clk 0:02:26]} 12... Ne4 {[%clk
0:02:06.5]} 13. Bxe4 {[%clk 0:02:24.5]} 13... dxe4 {[%clk 0:02:07.4]} 14. Nd2
{[%clk 0:02:24.8]} 14... Re8 {[%clk 0:01:49]} 15. d5 {[%clk 0:02:19.9]} 15...
Nb6 {[%clk 0:01:32.5]} 16. dxc6 {[%clk 0:02:18.5]} 16... bxc6 {[%clk 0:01:33.1]}
17. Qc2 {[%clk 0:02:15.2]} 17... Bd7 {[%clk 0:01:16.5]} 18. Nxe4 {[%clk
0:02:02.1]} 18... Bf5 {[%clk 0:01:15.2]} 19. Nf6+ {[%clk 0:02:00.1]} 19... gxf6
{[%clk 0:01:15]} 20. Qxf5 {[%clk 0:01:59.5]} 20... Qe5 {[%clk 0:01:15.5]} 21.
Qxf6 {[%clk 0:01:24.1]} 21... Qxf6 {[%clk 0:01:03.7]} 22. Bxf6 {[%clk
0:01:23.8]} 22... Rac8 {[%clk 0:01:00.2]} 23. Bd4 {[%clk 0:01:19.9]} 23... Nd5
{[%clk 0:00:57.1]} 24. Rc5 {[%clk 0:01:17.7]} 24... Re6 {[%clk 0:00:53.6]} 25.
Rfc1 {[%clk 0:01:14.7]} 25... Nb4 {[%clk 0:00:52.8]} 26. Ra5 {[%clk 0:01:03.9]}
26... Nd3 {[%clk 0:00:44]} 27. Rd1 {[%clk 0:00:57.3]} 27... c5 {[%clk
0:00:39.5]} 28. Bc3 {[%clk 0:00:47.5]} 28... c4 {[%clk 0:00:38]} 29. g3 {[%clk
0:00:38.5]} 29... a6 {[%clk 0:00:29.4]} 30. Kg2 {[%clk 0:00:32.5]} 30... Rb6
{[%clk 0:00:22.2]} 31. b3 {[%clk 0:00:13.8]} 31... cxb3 {[%clk 0:00:22]} 32.
Rxd3 {[%clk 0:00:14]} 32... b2 {[%clk 0:00:22]} 33. Bxb2 {[%clk 0:00:13.8]}
33... Rxb2 {[%clk 0:00:22.6]} 34. Rxa6 {[%clk 0:00:14]} 34... Kg7 {[%clk
0:00:22.4]} 35. Ra4 {[%clk 0:00:13.2]} 35... f5 {[%clk 0:00:18.6]} 36. Rf4
{[%clk 0:00:13.3]} 36... Rc5 {[%clk 0:00:18.8]} 37. Rd7+ {[%clk 0:00:13.2]}
37... Kf6 {[%clk 0:00:19]} 38. Rd6+ {[%clk 0:00:14.1]} 38... Kg7 {[%clk
0:00:17.9]} 39. a4 {[%clk 0:00:13.6]} 39... Ra2 {[%clk 0:00:17.9]} 40. h4 {[%clk
0:00:13.5]} 40... Ra5 {[%clk 0:00:17.8]} 41. h5 {[%clk 0:00:13.1]} 41... R2xa4
{[%clk 0:00:18.1]} 42. Rg6+ {[%clk 0:00:13]} 42... Kh7 {[%clk 0:00:17.8]} 43.
Rxa4 {[%clk 0:00:11.6]} 43... Rxa4 {[%clk 0:00:17.7]} 44. Rf6 {[%clk 0:00:12.5]}
44... Ra5 {[%clk 0:00:17.8]} 45. Kf3 {[%clk 0:00:12.8]} 45... Kg7 {[%clk
0:00:17.4]} 46. Rg6+ {[%clk 0:00:13.2]} 46... Kh7 {[%clk 0:00:16.6]} 47. Kf4
{[%clk 0:00:13.6]} 47... Ra2 {[%clk 0:00:16.9]} 48. f3 {[%clk 0:00:13.1]} 48...
Ra5 {[%clk 0:00:16]} 49. Rf6 {[%clk 0:00:13.2]} 49... Kg7 {[%clk 0:00:16.4]} 50.
Rxf5 {[%clk 0:00:13.5]} 50... Ra4+ {[%clk 0:00:17]} 51. e4 {[%clk 0:00:14]}
51... Ra3 {[%clk 0:00:17.6]} 52. Rb5 {[%clk 0:00:14.1]} 52... Rc3 {[%clk
0:00:15.8]} 53. g4 {[%clk 0:00:14.5]} 53... Rd3 {[%clk 0:00:15.8]} 54. Rb7+
{[%clk 0:00:14.6]} 54... Kg8 {[%clk 0:00:14.9]} 55. Rb6 {[%clk 0:00:15.5]} 55...
Kg7 {[%clk 0:00:14.3]} 56. Rg6+ {[%clk 0:00:15.4]} 56... Kh7 {[%clk 0:00:14.2]}
57. Ra6 {[%clk 0:00:15.9]} 57... Kg7 {[%clk 0:00:14]} 58. e5 {[%clk 0:00:16.3]}
58... Rc3 {[%clk 0:00:13]} 59. Ke4 {[%clk 0:00:15.7]} 59... Rb3 {[%clk
0:00:12.6]} 60. f4 {[%clk 0:00:15.9]} 1-0

[Event "*** Titled Tuesday Blitz"]
[Site "Chess.com"]
[Date "2021.03.16"]
[Round "2"]
[White "Kurkusha"]
[Black "olksuna"]
[Result "0-1"]
[WhiteElo "2366"]
[BlackElo "2676"]
[TimeControl "180+1"]
[EndTime "10:18:42 PDT"]
[Termination "olksuna won by resignation"]

1. Nf3 {[%clk 0:03:00.9]} 1... Nf6 {[%clk 0:02:59.9]} 2. c4 {[%clk 0:03:00.7]}
2... c5 {[%clk 0:03:00.1]} 3. Nc3 {[%clk 0:02:59.3]} 3... e6 {[%clk 0:03:00.2]}
4. e3 {[%clk 0:02:58.3]} 4... d5 {[%clk 0:02:56.3]} 5. cxd5 {[%clk 0:02:57.4]}
5... Nxd5 {[%clk 0:02:57.2]} 6. Nxd5 {[%clk 0:02:55.7]} 6... Qxd5 {[%clk
0:02:51.8]} 7. b3 {[%clk 0:02:55.1]} 7... Be7 {[%clk 0:02:47.7]} 8. Bb2 {[%clk
0:02:54.7]} 8... O-O {[%clk 0:02:47.7]} 9. Bc4 {[%clk 0:02:55]} 9... Qh5 {[%clk
0:02:46.9]} 10. O-O {[%clk 0:02:53.7]} 10... Rd8 {[%clk 0:02:45.7]} 11. Ne5
{[%clk 0:02:14]} 11... Qf5 {[%clk 0:02:18.8]} 12. Qe2 {[%clk 0:02:02.2]} 12...
Nd7 {[%clk 0:02:07.8]} 13. Bd3 {[%clk 0:01:58.2]} 13... Qg5 {[%clk 0:02:00.7]}
14. f4 {[%clk 0:01:57.6]} 14... Qh6 {[%clk 0:01:57.1]} 15. Ng4 {[%clk
0:01:49.7]} 15... Qh5 {[%clk 0:01:36.2]} 16. f5 {[%clk 0:01:31.5]} 16... Bg5
{[%clk 0:01:12.4]} 17. Bb5 {[%clk 0:00:43.6]} 17... Kh8 {[%clk 0:00:59.8]} 18.
Bxd7 {[%clk 0:00:29.3]} 18... Bxd7 {[%clk 0:00:58.2]} 19. f6 {[%clk 0:00:29.5]}
19... g6 {[%clk 0:00:51.7]} 20. h3 {[%clk 0:00:27.4]} 20... Bc6 {[%clk
0:00:33.7]} 21. Rad1 {[%clk 0:00:25.6]} 21... Kg8 {[%clk 0:00:25.8]} 22. d4
{[%clk 0:00:20.3]} 22... cxd4 {[%clk 0:00:24.2]} 23. Bxd4 {[%clk 0:00:21]} 23...
Rd7 {[%clk 0:00:19.9]} 24. Be5 {[%clk 0:00:16.8]} 24... Rad8 {[%clk 0:00:17.9]}
25. Rxd7 {[%clk 0:00:16.1]} 25... Rxd7 {[%clk 0:00:18.8]} 26. Rd1 {[%clk
0:00:16.3]} 26... Rd5 {[%clk 0:00:11.7]} 27. Rxd5 {[%clk 0:00:15.5]} 27... exd5
{[%clk 0:00:11.7]} 28. Qd3 {[%clk 0:00:14.3]} 28... Bh4 {[%clk 0:00:09.6]} 29.
e4 {[%clk 0:00:12.4]} 29... Qg5 {[%clk 0:00:09]} 30. exd5 {[%clk 0:00:10.5]}
30... Qc1+ {[%clk 0:00:07.5]} 31. Kh2 {[%clk 0:00:11.1]} 31... Bd7 {[%clk
0:00:08]} 32. d6 {[%clk 0:00:07.8]} 32... h5 {[%clk 0:00:05.5]} 33. Ne3 {[%clk
0:00:06.2]} 33... Qc6 {[%clk 0:00:04.3]} 34. Qd5 {[%clk 0:00:04.6]} 34... Bf2
{[%clk 0:00:03.4]} 35. Qxc6 {[%clk 0:00:04.6]} 35... bxc6 {[%clk 0:00:04.3]} 36.
Nc4 {[%clk 0:00:04.9]} 36... Kf8 {[%clk 0:00:04.4]} 37. Na5 {[%clk 0:00:04.4]}
37... Ke8 {[%clk 0:00:04.3]} 38. b4 {[%clk 0:00:04.8]} 38... Be1 {[%clk
0:00:04.1]} 39. a3 {[%clk 0:00:04.8]} 39... c5 {[%clk 0:00:04.4]} 40. Nb7 {[%clk
0:00:02.3]} 40... cxb4 {[%clk 0:00:04.4]} 41. axb4 {[%clk 0:00:03.2]} 41... Bxb4
{[%clk 0:00:04.8]} 42. Bd4 {[%clk 0:00:03.7]} 42... a5 {[%clk 0:00:05.2]} 43.
Nc5 {[%clk 0:00:01.8]} 43... Bc6 {[%clk 0:00:05.5]} 44. Nb3 {[%clk 0:00:01.6]}
44... a4 {[%clk 0:00:05.7]} 45. Nd2 {[%clk 0:00:01.6]} 45... a3 {[%clk 0:00:06]}
46. Ba1 {[%clk 0:00:02.3]} 46... a2 {[%clk 0:00:05.9]} 47. Nb3 {[%clk 0:00:03]}
47... Bxd6+ {[%clk 0:00:06.1]} 48. Kg1 {[%clk 0:00:02.3]} 48... Bd5 {[%clk
0:00:06.8]} 49. Nd4 {[%clk 0:00:02.5]} 49... Bc5 {[%clk 0:00:07.1]} 50. Kf1
{[%clk 0:00:02.1]} 50... Kd7 {[%clk 0:00:07.6]} 51. Ke1 {[%clk 0:00:02.1]} 51...
Bxg2 {[%clk 0:00:07.3]} 52. h4 {[%clk 0:00:02.6]} 52... Bd5 {[%clk 0:00:06.6]}
53. Kd2 {[%clk 0:00:02.9]} 53... Bd6 {[%clk 0:00:07]} 54. Kd3 {[%clk 0:00:02.8]}
54... Be5 {[%clk 0:00:07.4]} 55. Ke3 {[%clk 0:00:02.3]} 55... Bxf6 {[%clk
0:00:07.3]} 56. Kf4 {[%clk 0:00:02.2]} 56... Bxh4 {[%clk 0:00:07.4]} 57. Nc2
{[%clk 0:00:01.5]} 57... Be7 {[%clk 0:00:06.1]} 58. Ne3 {[%clk 0:00:01.3]} 58...
Be6 {[%clk 0:00:06.3]} 59. Kg3 {[%clk 0:00:01]} 59... g5 {[%clk 0:00:06.8]} 60.
Nc2 {[%clk 0:00:01.4]} 60... h4+ {[%clk 0:00:07.7]} 61. Kg2 {[%clk 0:00:01.2]}
61... g4 {[%clk 0:00:08.6]} 62. Nd4 {[%clk 0:00:01.3]} 62... h3+ {[%clk
0:00:09.5]} 63. Kg3 {[%clk 0:00:01.3]} 63... Bd6+ {[%clk 0:00:10.4]} 64. Kf2
{[%clk 0:00:01.5]} 64... h2 {[%clk 0:00:10.6]} 65. Kg2 {[%clk 0:00:02.1]} 65...
Bd5+ {[%clk 0:00:10.9]} 0-1

[Event "*** Titled Tuesday Blitz"]
[Site "Chess.com"]
[Date "2021.03.16"]
[Round "2"]
[White "Babas"]
[Black "NishaOnYoutube"]
[Result "1-0"]
[WhiteElo "2422"]
[BlackElo "2079"]
[TimeControl "180+1"]
[EndTime "10:18:57 PDT"]
[Termination "Babas won on time"]

1. d4 {[%clk 0:03:00.9]} 1... d5 {[%clk 0:02:58.7]} 2. Nf3 {[%clk 0:02:59.4]}
2... Nf6 {[%clk 0:02:58.1]} 3. c4 {[%clk 0:02:59]} 3... e6 {[%clk 0:02:57.5]} 4.
Nc3 {[%clk 0:02:59.2]} 4... Be7 {[%clk 0:02:56.7]} 5. Bg5 {[%clk 0:02:58.8]}
5... O-O {[%clk 0:02:56.8]} 6. cxd5 {[%clk 0:02:58.7]} 6... exd5 {[%clk
0:02:47.8]} 7. e3 {[%clk 0:02:57.5]} 7... c6 {[%clk 0:02:41.7]} 8. Bd3 {[%clk
0:02:55.9]} 8... Ne4 {[%clk 0:02:06.1]} 9. Bxe7 {[%clk 0:02:42.1]} 9... Qxe7
{[%clk 0:02:05.8]} 10. Qc2 {[%clk 0:02:38.3]} 10... f5 {[%clk 0:01:57.3]} 11.
Ne5 {[%clk 0:02:17]} 11... Nd7 {[%clk 0:01:54.5]} 12. Nxd7 {[%clk 0:01:47]}
12... Bxd7 {[%clk 0:01:54.2]} 13. O-O {[%clk 0:01:42.3]} 13... Rae8 {[%clk
0:01:53.3]} 14. Rae1 {[%clk 0:01:41.8]} 14... Qg5 {[%clk 0:01:30.5]} 15. f4
{[%clk 0:01:35]} 15... Qg6 {[%clk 0:01:26.3]} 16. Bxe4 {[%clk 0:01:32.9]} 16...
fxe4 {[%clk 0:01:21]} 17. b4 {[%clk 0:01:32.3]} 17... a6 {[%clk 0:01:20.3]} 18.
a4 {[%clk 0:01:31.5]} 18... Ra8 {[%clk 0:01:03.2]} 19. Kh1 {[%clk 0:01:23.6]}
19... Kh8 {[%clk 0:00:59.9]} 20. Rf2 {[%clk 0:01:16.1]} 20... Qd6 {[%clk
0:00:53.8]} 21. Qb2 {[%clk 0:01:14.3]} 21... Rf6 {[%clk 0:00:49.1]} 22. Rg1
{[%clk 0:01:08]} 22... Rh6 {[%clk 0:00:48.2]} 23. g4 {[%clk 0:01:01.3]} 23...
Rh3 {[%clk 0:00:46.3]} 24. Nd1 {[%clk 0:00:50.1]} 24... Rf8 {[%clk 0:00:43.1]}
25. Rfg2 {[%clk 0:00:43.4]} 25... Qg6 {[%clk 0:00:39.8]} 26. Qe2 {[%clk
0:00:28]} 26... Rf3 {[%clk 0:00:35.7]} 27. f5 {[%clk 0:00:23.1]} 27... Qg5
{[%clk 0:00:34.5]} 28. Rg3 {[%clk 0:00:22.9]} 28... Rxg3 {[%clk 0:00:26.9]} 29.
Rxg3 {[%clk 0:00:22.6]} 29... Rf6 {[%clk 0:00:22.6]} 30. Nf2 {[%clk 0:00:22.5]}
30... Rf8 {[%clk 0:00:15.9]} 31. Nh3 {[%clk 0:00:22.1]} 31... Qe7 {[%clk
0:00:15.2]} 32. Qe1 {[%clk 0:00:19.5]} 32... Qd6 {[%clk 0:00:14.8]} 33. Nf4
{[%clk 0:00:19]} 33... Re8 {[%clk 0:00:11]} 34. Qc3 {[%clk 0:00:18.8]} 34... Kg8
{[%clk 0:00:10]} 35. Qc5 {[%clk 0:00:17.8]} 35... Qc7 {[%clk 0:00:07.1]} 36. a5
{[%clk 0:00:12.3]} 36... Qd8 {[%clk 0:00:06]} 37. Qd6 {[%clk 0:00:10.3]} 37...
Bc8 {[%clk 0:00:05.3]} 38. Qxd8 {[%clk 0:00:07]} 38... Rxd8 {[%clk 0:00:06.2]}
39. Kg2 {[%clk 0:00:07]} 39... Kf7 {[%clk 0:00:06.3]} 40. Kf2 {[%clk 0:00:07.4]}
40... h6 {[%clk 0:00:06.6]} 41. Ne2 {[%clk 0:00:07.5]} 41... Kf6 {[%clk
0:00:06.5]} 42. Nc1 {[%clk 0:00:07.3]} 42... Re8 {[%clk 0:00:06.4]} 43. Nb3
{[%clk 0:00:07.4]} 43... h5 {[%clk 0:00:05.4]} 44. h3 {[%clk 0:00:04.8]} 44...
hxg4 {[%clk 0:00:05.3]} 45. hxg4 {[%clk 0:00:05.7]} 45... Rh8 {[%clk 0:00:05.9]}
46. Kg2 {[%clk 0:00:04.9]} 46... Rh4 {[%clk 0:00:05.4]} 47. Nc5 {[%clk
0:00:04.3]} 47... Rh8 {[%clk 0:00:04.5]} 48. Rh3 {[%clk 0:00:04.1]} 48... Rxh3
{[%clk 0:00:03.7]} 49. Kxh3 {[%clk 0:00:05]} 49... Kg5 {[%clk 0:00:04]} 50. Kg3
{[%clk 0:00:05.6]} 50... g6 {[%clk 0:00:02.8]} 51. fxg6 {[%clk 0:00:05.9]} 51...
Kxg6 {[%clk 0:00:03]} 52. Kf4 {[%clk 0:00:06.4]} 52... Kf6 {[%clk 0:00:03.5]}
53. Nb3 {[%clk 0:00:04.8]} 53... Kg6 {[%clk 0:00:03.2]} 54. Nd2 {[%clk
0:00:05.1]} 54... Kf6 {[%clk 0:00:03.4]} 55. Nf1 {[%clk 0:00:05.6]} 55... Bd7
{[%clk 0:00:03.9]} 56. Ng3 {[%clk 0:00:06]} 56... Bc8 {[%clk 0:00:04.2]} 57.
Nh5+ {[%clk 0:00:06.4]} 57... Kg6 {[%clk 0:00:04.5]} 58. Ng3 {[%clk 0:00:04.6]}
58... Kf6 {[%clk 0:00:04.7]} 59. Nh1 {[%clk 0:00:04.3]} 59... Kg6 {[%clk
0:00:04.9]} 60. Nf2 {[%clk 0:00:04.8]} 60... Kf6 {[%clk 0:00:05.1]} 61. Nd1
{[%clk 0:00:05.1]} 61... Kg6 {[%clk 0:00:05.4]} 62. Nc3 {[%clk 0:00:05.6]} 62...
Kf6 {[%clk 0:00:05.3]} 63. Na4 {[%clk 0:00:06.1]} 63... Bd7 {[%clk 0:00:02.1]}
64. Nb6 {[%clk 0:00:06.6]} 64... Be6 {[%clk 0:00:01.8]} 65. Na4 {[%clk
0:00:06.6]} 65... Kg6 {[%clk 0:00:02.2]} 66. Nc5 {[%clk 0:00:06.7]} 1-0

[Event "*** Titled Tuesday Blitz"]
[Site "Chess.com"]
[Date "2021.03.16"]
[Round "2"]
[White "rpragchess"]
[Black "NicoChasin"]
[Result "1-0"]
[WhiteElo "2916"]
[BlackElo "2604"]
[TimeControl "180+1"]
[EndTime "10:18:58 PDT"]
[Termination "rpragchess won by resignation"]

1. c4 {[%clk 0:03:00.9]} 1... e5 {[%clk 0:02:59.2]} 2. Nc3 {[%clk 0:03:00.2]}
2... Nf6 {[%clk 0:02:59.4]} 3. Nf3 {[%clk 0:02:59.5]} 3... Nc6 {[%clk
0:02:59.4]} 4. e3 {[%clk 0:02:58.6]} 4... d5 {[%clk 0:02:56.6]} 5. cxd5 {[%clk
0:02:58.3]} 5... Nxd5 {[%clk 0:02:57.3]} 6. Bb5 {[%clk 0:02:58.9]} 6... Nxc3
{[%clk 0:02:57.4]} 7. bxc3 {[%clk 0:02:58.9]} 7... Bd6 {[%clk 0:02:58]} 8. d4
{[%clk 0:02:53.9]} 8... O-O {[%clk 0:02:57.1]} 9. h3 {[%clk 0:02:54]} 9... Bd7
{[%clk 0:02:56.8]} 10. Bd3 {[%clk 0:02:50.8]} 10... f5 {[%clk 0:02:55.9]} 11.
O-O {[%clk 0:02:47.1]} 11... e4 {[%clk 0:02:55.8]} 12. Bc4+ {[%clk 0:02:47.5]}
12... Kh8 {[%clk 0:02:56.2]} 13. Nd2 {[%clk 0:02:47.3]} 13... Na5 {[%clk
0:02:55.9]} 14. a4 {[%clk 0:02:42.4]} 14... Nxc4 {[%clk 0:02:53.7]} 15. Nxc4
{[%clk 0:02:43.3]} 15... Be6 {[%clk 0:02:53.6]} 16. Qe2 {[%clk 0:02:41.7]} 16...
c5 {[%clk 0:02:47.4]} 17. Rd1 {[%clk 0:02:19.7]} 17... Qc7 {[%clk 0:02:45]} 18.
Nxd6 {[%clk 0:02:16.3]} 18... Qxd6 {[%clk 0:02:44.2]} 19. Ba3 {[%clk 0:02:16.9]}
19... Qc6 {[%clk 0:02:31.7]} 20. c4 {[%clk 0:02:07.8]} 20... cxd4 {[%clk
0:02:24.7]} 21. Bxf8 {[%clk 0:02:08.7]} 21... d3 {[%clk 0:02:23.6]} 22. Bxg7+
{[%clk 0:02:09.1]} 22... Kxg7 {[%clk 0:02:23.2]} 23. Qb2+ {[%clk 0:02:10]} 23...
Kf7 {[%clk 0:02:23.2]} 24. Qe5 {[%clk 0:01:58.9]} 24... Rc8 {[%clk 0:02:20.2]}
25. Rab1 {[%clk 0:01:56.7]} 25... b6 {[%clk 0:02:19.1]} 26. a5 {[%clk
0:01:54.1]} 26... bxa5 {[%clk 0:02:18.2]} 27. Qxa5 {[%clk 0:01:53.9]} 27... Rc7
{[%clk 0:02:17.3]} 28. Rdc1 {[%clk 0:01:40.6]} 28... Rd7 {[%clk 0:02:02.3]} 29.
Qd2 {[%clk 0:01:25.7]} 29... Rc7 {[%clk 0:01:50.6]} 30. c5 {[%clk 0:01:25.2]}
30... Qd5 {[%clk 0:01:46.5]} 31. Rb5 {[%clk 0:01:16.9]} 31... a6 {[%clk
0:01:45]} 32. Ra5 {[%clk 0:01:13.8]} 32... Rc6 {[%clk 0:01:45.1]} 33. Qc3 {[%clk
0:01:07]} 33... Qb3 {[%clk 0:01:44.3]} 34. Qd4 {[%clk 0:00:56.9]} 34... Kg6
{[%clk 0:01:31.7]} 35. Raa1 {[%clk 0:00:55.1]} 35... Qd5 {[%clk 0:01:28.1]} 36.
Qxd5 {[%clk 0:00:43.6]} 36... Bxd5 {[%clk 0:01:28]} 37. Rab1 {[%clk 0:00:43.7]}
37... Kf6 {[%clk 0:01:17.6]} 38. Kf1 {[%clk 0:00:43.5]} 38... a5 {[%clk
0:01:00.9]} 39. Ra1 {[%clk 0:00:35.7]} 39... Bb3 {[%clk 0:00:50.5]} 40. Ke1
{[%clk 0:00:31]} 40... a4 {[%clk 0:00:50.6]} 41. Kd2 {[%clk 0:00:31.2]} 41...
Ke5 {[%clk 0:00:50.7]} 42. g3 {[%clk 0:00:24.2]} 42... h5 {[%clk 0:00:49.8]} 43.
Rc3 {[%clk 0:00:22.6]} 43... Kd5 {[%clk 0:00:49.1]} 44. f3 {[%clk 0:00:20.3]}
44... Rg6 {[%clk 0:00:44.2]} 45. Rg1 {[%clk 0:00:19.9]} 45... Kc6 {[%clk
0:00:42.3]} 46. Rcc1 {[%clk 0:00:16.6]} 46... Rg5 {[%clk 0:00:29.6]} 47. fxe4
{[%clk 0:00:09]} 47... fxe4 {[%clk 0:00:29]} 48. g4 {[%clk 0:00:09.9]} 48...
hxg4 {[%clk 0:00:27.3]} 49. hxg4 {[%clk 0:00:10.8]} 49... Be6 {[%clk 0:00:20.3]}
50. Rc3 {[%clk 0:00:07.1]} 50... Bb3 {[%clk 0:00:16.9]} 51. Rg2 {[%clk
0:00:07.1]} 51... Rg7 {[%clk 0:00:14.1]} 52. g5 {[%clk 0:00:07]} 52... Rg6
{[%clk 0:00:14.6]} 53. Rc1 {[%clk 0:00:06.5]} 53... a3 {[%clk 0:00:14]} 54. Rc3
{[%clk 0:00:04.2]} 54... a2 {[%clk 0:00:14.3]} 55. Rc1 {[%clk 0:00:04.6]} 55...
Kb5 {[%clk 0:00:13]} 56. Rgg1 {[%clk 0:00:02.8]} 56... Kb4 {[%clk 0:00:11.8]}
57. c6 {[%clk 0:00:02.5]} 57... Bc2 {[%clk 0:00:12.1]} 58. c7 {[%clk 0:00:02.8]}
58... Rc6 {[%clk 0:00:12.3]} 59. g6 {[%clk 0:00:03.3]} 59... Rxc7 {[%clk
0:00:12.5]} 60. g7 {[%clk 0:00:03.8]} 60... Rxg7 {[%clk 0:00:12]} 61. Rxg7
{[%clk 0:00:04.7]} 61... Bb1 {[%clk 0:00:12.3]} 62. Ra7 {[%clk 0:00:05.2]} 62...
Kb3 {[%clk 0:00:11.9]} 63. Rcc7 {[%clk 0:00:05.8]} 63... Kb2 {[%clk 0:00:11.7]}
64. Rcb7+ {[%clk 0:00:06.4]} 64... Ka1 {[%clk 0:00:12]} 65. Rb4 {[%clk
0:00:04.5]} 65... Bc2 {[%clk 0:00:12.3]} 66. Rxe4 {[%clk 0:00:05]} 66... Kb1
{[%clk 0:00:12.6]} 67. Rb4+ {[%clk 0:00:05.3]} 67... Ka1 {[%clk 0:00:12.4]} 68.
e4 {[%clk 0:00:05.9]} 68... Bb3 {[%clk 0:00:11.3]} 69. e5 {[%clk 0:00:06.8]}
69... Kb2 {[%clk 0:00:11.3]} 70. e6 {[%clk 0:00:06.8]} 70... Ka1 {[%clk
0:00:09.1]} 71. e7 {[%clk 0:00:06.9]} 71... Kb2 {[%clk 0:00:09.4]} 72. Rxa2+
{[%clk 0:00:06.7]} 72... Kxa2 {[%clk 0:00:09.3]} 73. e8=Q {[%clk 0:00:07.3]}
73... Ka3 {[%clk 0:00:10.2]} 74. Rxb3+ {[%clk 0:00:06.7]} 1-0